Cogmind - Beta 17 @@@ ROGUE MODE // 2026.08.11 @ 22:18:20 Player: 4R-ZE3 Result: Destroyed by H-61 Shepherd with Heavy Assault Cannon Performance ------------- Evolutions (2) 1000 Regions Visited (7) 1400 Robots Destroyed (58) 290 Value Destroyed (1577) 1577 Prototype IDs (24) 480 Alien Tech Used (0) 0 Bonus (335) 335 TOTAL SCORE: 5082 Bonus ------- Follower Combat Kills 35 Aligned with FarCom 300 Cogmind --------- Core Integrity 0/550 Matter 150/300 Energy 100/265 System Corruption 0% Temperature Cool (37) Movement Core (650) Ox12 Location -8/Materials Parts ------- > --- POWER (1) -------- Improved Ion Engine > --- PROPULSION (4) --- (None) > --- UTILITY (4) ------ Cooling System Large Storage Unit > --- WEAPON (2) ------- Particle Gun Heavy Particle Cannon > --- INVENTORY (15) --- Light Ion Engine Aluminum Leg Aluminum Leg Improved Aluminum Leg VSS Leg Huge Storage Unit Cloak of Protection Plasma Cutter Peak State ------------ > --- POWER ------------ Heavy Ion Engine > --- PROPULSION ------- Carbon-fiber Leg Carbon-fiber Leg Titanium Leg Titanium Leg > --- UTILITY ---------- Cooling System Cooling System Large Storage Unit Utility Shielding > --- WEAPON ----------- Particle Gun Particle Gun > --- INVENTORY -------- Light Ion Engine Aluminum Leg Aluminum Leg Aluminum Leg Aluminum Leg Improved Aluminum Leg Cooling System Cloak of Protection Particle Gun Grenade Launcher Plasma Cutter [Rating: 27] Favorites ----------- Power Heavy Ion Engine Engine Heavy Ion Engine Propulsion Light Treads Treads Light Treads Leg Titanium Leg Wheel Wheel Utility Large Storage Unit Device Cooling System Storage Large Storage Unit Protection Utility Shielding Weapon Particle Gun Energy Gun Particle Gun Energy Cannon Beam Cannon Ballistic Gun Light Assault Rifle Launcher Grenade Launcher Build | -11 -10 -10 -9 -9 -9 -8 -8 ------- Run | Yrd Mat Min Mat Min Exi Min Mat Slots Evolved 4 | . . . 2 . . . 2 Power . | . . . . . . . . Propulsion 2 | . . . . . . . 2 Utility 2 | . . . 2 . . . . Weapon . | . . . . . . . . Parts Attached 34 | 6 5 . 4 2 1 5 11 Power 3 | 1 . . 1 . . . 1 Engine 3 | 1 . . 1 . . . 1 Core . | . . . . . . . . Reactor . | . . . . . . . . Propulsion 11 | 2 2 . . 1 . . 6 Treads 3 | . 2 . . 1 . . . Leg 6 | . . . . . . . 6 Wheel 2 | 2 . . . . . . . Hover . | . . . . . . . . Flight . | . . . . . . . . Utility 10 | 1 2 . 2 . 1 2 2 Device 5 | . 1 . 1 . . 2 1 Storage 3 | 1 1 . . . 1 . . Processor . | . . . . . . . . Hackware . | . . . . . . . . Protection 2 | . . . 1 . . . 1 Artifact . | . . . . . . . . Weapon 10 | 2 1 . 1 1 . 3 2 Energy Gun 4 | 1 . . 1 1 . 1 . Energy Cannon 4 | . 1 . . . . 2 1 Ballistic Gun 1 | 1 . . . . . . . Ballistic Cannon . | . . . . . . . . Launcher 1 | . . . . . . . 1 Special Weapon . | . . . . . . . . Impact Weapon . | . . . . . . . . Slashing Weapon . | . . . . . . . . Piercing Weapon . | . . . . . . . . Special Melee Weapon . | . . . . . . . . Unidentified Prototypes 1 | . . . 1 . . . . Parts Lost 20 | . . . 1 2 . 4 13 Power 1 | . . . . . . . 1 Propulsion 7 | . . . . 1 . 1 5 Utility 5 | . . . . . . 1 4 Weapon 7 | . . . 1 1 . 2 3 Highest Loss Streak 5 | . . . 1 2 . 4 5 To Critical Strikes . | . . . . . . . . Average Backups 11 | 2 4 8 12 14 15 14 12 Power 1 | . 1 1 2 2 2 1 1 Propulsion 5 | 1 2 4 4 5 7 7 5 Utility 1 | . . . 1 2 2 2 2 Weapon 2 | . 1 2 4 4 2 2 1 Tool/Special . | . . . . . . . . Unused Backups 17 | . . . 3 5 . 1 8 Power 2 | . . . . . . 1 1 Propulsion 9 | . . . 1 4 . . 4 Utility 2 | . . . . . . . 2 Weapon 3 | . . . 2 1 . . . Tool/Special 1 | . . . . . . . 1 Average Slot Usage (%) 97 | . 96 100 94 99 100 97 92 Engine 11 | . 14 14 11 11 11 11 9 Treads 12 | . 27 28 22 12 . . . Leg 5 | . . . . . . . 32 Wheel 6 | . . . . 8 22 19 . Device 18 | . 6 14 21 22 22 22 16 Storage 12 | . 18 14 11 11 11 11 9 Protection 6 | . . . 6 11 11 11 6 Energy Gun 15 | . 14 14 12 21 22 11 12 Energy Cannon 5 | . 5 14 9 . . 10 4 Peak Build Rating 27 | 6 7 8 14 16 17 19 27 Average Rating 14 | 4 6 7 11 15 16 17 25 On Entrance 10 | . 6 7 8 14 16 17 17 Avg Prop Armor Cover (%) . | . . . . . . . . Naked Turns . | . . . . . . . . Heaviest Build 41 | 13 33 31 37 38 38 41 41 Greatest Support 64 | 20 40 40 40 43 20 20 64 Greatest Overweight (x) 3 | . . . . 1 1 3 3 Average Overweight (x) . | . . . . . 1 1 . Largest Inventory Capacity 15 | 8 15 15 15 15 15 15 15 Average Capacity 14 | 7 13 15 15 15 15 15 15 Most Carried 15 | 4 7 10 15 15 15 15 15 Average Carried 11 | 2 4 8 13 14 14 14 12 Final Capacity 15 | 8 15 15 15 15 15 15 15 Final Carried 15 | 4 7 10 13 15 15 14 8 Class Distribution -------------------- 86% | Mutant 13% | Scavenger-Mutant Dominant Class ---------------- Mutant | -10/Materials Mutant | -10/Mines Mutant | -9/Materials Mutant | -9/Mines Mutant | -9/Exiles Mutant | -8/Mines Scavenger-Mutant | -8/Materials Resources | -11 -10 -10 -9 -9 -9 -8 -8 ----------- Run | Yrd Mat Min Mat Min Exi Min Mat Matter Collected 525 | 225 85 . 40 40 . 70 65 Remotely . | . . . . . . . . Salvage Created 1887 | . 94 274 280 261 . 317 661 Parts 99 | . 8 18 8 20 . 17 28 Haulers Intercepted 2 | . . . 1 . . . 1 Recyclers Shooed . | . . . . . . . . Parts Field Recycled . | . . . . . . . . Retrieved Matter . | . . . . . . . . Parts Self-Destructed . | . . . . . . . . Prevented . | . . . . . . . . Parts Restored . | . . . . . . . . Kills | -11 -10 -10 -9 -9 -9 -8 -8 ------- Run | Yrd Mat Min Mat Min Exi Min Mat Combat Hostiles Destroyed 45 | . 4 10 5 7 . 7 12 Guns 22 | . 4 3 1 7 . 4 3 Cannons 14 | . . 6 3 . . 3 2 AOE 6 | . . . . . . . 6 Classes Destroyed 13 | . 2 1 2 4 . 1 3 Worker 1 | . . . . 1 . . . Builder 4 | . . . . 1 . 1 2 Tunneler 1 | . . . . . . . 1 Hauler 2 | . . . 1 . . . 1 Recycler 3 | . . . . 1 . . 2 Operator 1 | . . . 1 . . . . Watcher 1 | . 1 . . . . . . Swarmer 16 | . 4 6 . 3 . 3 . Grunt 21 | . . 4 5 2 . 3 7 Duelist 1 | . . . . . . 1 . Sentry 1 | . . . . . . . 1 Demolisher 2 | . . . . 2 . . . Specialist 4 | . . . . . . . 4 Best Kill Streak 9 | . 3 3 3 3 . 4 9 Combat Bots Only 6 | . 3 3 3 3 . 3 6 Max Kills in Single Turn 2 | . 1 1 2 2 . 2 2 Gunslinging 1 | . . . 1 . . . . Exploded 2 | . . . . . . . 2 Melee . | . . . . . . . . Uniques/NPCs Destroyed . | . . . . . . . . Combat | -11 -10 -10 -9 -9 -9 -8 -8 -------- Run | Yrd Mat Min Mat Min Exi Min Mat Hostile Shots Fired 282 | . 15 42 25 19 . 29 152 Missed 87 | . 5 10 13 3 . 6 50 Hits 195 | . 10 32 12 16 . 23 102 Melee 2 | . . . . . . 2 . Projectile 193 | . 10 32 12 16 . 21 102 AOE 9 | . . . . 9 . . . Critical Strikes 5 | . 1 . . . . . 4 Damage Taken 3119 | . 79 334 134 428 . 395 1749 Core 863 | . 17 51 13 126 . 82 574 Absorbed by Shields . | . . . . . . . . Redirected to Shielding 64 | . . . 9 6 . 14 35 Core Remaining (%) 72 | 100 . 72 . . . 44 . Volleys Fired 154 | . 8 25 21 17 . 18 65 Largest 2 | . 2 2 2 2 . 2 2 Hottest 140 | . 110 110 115 130 . 133 140 Shots Fired 292 | . 16 50 41 34 . 36 115 Gun 163 | . 8 25 25 34 . 16 55 Cannon 118 | . 8 25 16 . . 20 49 Launcher 11 | . . . . . . . 11 Special . | . . . . . . . . Kinetic . | . . . . . . . . Thermal 281 | . 16 50 41 34 . 36 104 Explosive 11 | . . . . . . . 11 Electromagnetic . | . . . . . . . . Robot Hit Streak 12 | . 2 9 6 4 . 6 12 Robot Miss Streak 7 | . 2 7 3 4 . 2 2 Penetration Max . | . . . . . . . . Secondary Targets 4 | . . . 1 2 . 1 . Max Gunslinging Chain 1 | . . . 1 1 . 1 . Shots Hit Robots 191 | . 6 31 27 17 . 25 85 Core Hits 99 | . 5 11 10 13 . 16 44 Critical Kills . | . . . . . . . . Critical Parts Destroyed . | . . . . . . . . Critical Strikes 5 | . 1 1 . 1 . . 2 Burn 5 | . 1 1 . 1 . . 2 Melee Attacks . | . . . . . . . . Impact . | . . . . . . . . Slashing . | . . . . . . . . Piercing . | . . . . . . . . Sneak Attacks . | . . . . . . . . Combat Hostiles . | . . . . . . . . Follow-up Attacks . | . . . . . . . . Damage Inflicted 4506 | . 79 514 440 288 . 558 2627 Guns 1699 | . 62 202 229 288 . 188 730 Cannons 1735 | . 17 312 211 . . 370 825 Explosions 1072 | . . . . . . . 1072 Melee . | . . . . . . . . Ramming . | . . . . . . . . Kinetic . | . . . . . . . . Thermal 3434 | . 79 514 440 288 . 558 1555 Explosive 1072 | . . . . . . . 1072 Electromagnetic . | . . . . . . . . Impact . | . . . . . . . . Slashing . | . . . . . . . . Piercing . | . . . . . . . . Highest Corruption . | . . . . . . . . Average Corruption . | . . . . . . . . Corruption Purged . | . . . . . . . . Corruption Blocked . | . . . . . . . . Overload Shots . | . . . . . . . . Overflow Damage 25 | . . . . . . 6 19 Projectiles 17 | . . . . . . 6 11 Explosions 8 | . . . . . . . 8 Melee . | . . . . . . . . Knockbacks . | . . . . . . . . Impact . | . . . . . . . . Kinetic . | . . . . . . . . Secondary . | . . . . . . . . Self-Inflicted Damage 52 | . . . . . . . 52 Shots 6 | . . . . . . . 6 Rammed . | . . . . . . . . Targets Rammed . | . . . . . . . . Kicked . | . . . . . . . . Crushed . | . . . . . . . . Highest Temperature 338 | . 90 171 . . . 119 338 Average Temperature 72 | . 34 67 . . . 57 99 Received Heat Transfer 564 | . . 84 75 . . 180 225 Siege Activations . | . . . . . . . . Martial Activations . | . . . . . . . . Shielding Activations . | . . . . . . . . Robots Disrupted . | . . . . . . . . Combat Hostiles . | . . . . . . . . Robots Corrupted . | . . . . . . . . Combat Hostiles . | . . . . . . . . Parts Fried . | . . . . . . . . Impact Corruptions . | . . . . . . . . Robots Melted 3 | . . 1 1 . . . 1 Combat Hostiles 3 | . . 1 1 . . . 1 Parts Melted 23 | . 2 6 2 2 . 2 9 Heat Transferred 7622 | . 296 1332 1073 777 . 1073 3071 Parts Sabotaged . | . . . . . . . . Parts Stolen . | . . . . . . . . Parts Stripped . | . . . . . . . . Power Chain Reactions . | . . . . . . . . Alert | -11 -10 -10 -9 -9 -9 -8 -8 ------- Run | Yrd Mat Min Mat Min Exi Min Mat Maximum Alert Level 1 | . . . . . . . 1 Low Security (%) 99 | 100 100 100 100 100 . 100 97 Level 1 . | . . . . . . . 2 Level 2 . | . . . . . . . . Level 3 . | . . . . . . . . Level 4 . | . . . . . . . . Level 5 . | . . . . . . . . High Security . | . . . . . . . . Max Security . | . . . . . . . . Peak Influence 215 | . 60 101 77 107 . 75 215 Initial 23 | . . 6 18 22 . . 23 Average 30 | . 18 61 29 17 . 20 43 Influence Increases 1505 | . 157 255 162 244 . 216 471 Destroy 0b10 Robot/C 920 | . 80 200 100 160 . 140 240 Destroy 0b10 Robot/NC 75 | . 5 . 10 15 . 15 30 Destroy Leader 186 | . 12 40 22 30 . 30 52 Allied During Kill 9 | . . . . 9 . . . Successful Hack 24 | . . . . . . . 24 Select Force Hacks 90 | . 60 . 30 . . . . Disable Machine 30 | . . . . . . . 30 Destroy Structure 51 | . . . . . . 1 50 Lose Combat Pursuer 120 | . . 15 . 30 . 30 45 Influence Decreases 1312 | . 140 225 152 210 91 156 338 Entered New Map 203 | . . 11 29 35 91 . 37 Time Decay 893 | . 140 214 113 125 . 120 181 Lost Part 176 | . . . 10 10 . 36 120 Lost Ally 40 | . . . . 40 . . . Squads Dispatched 13 | . 2 . 3 . . . 8 Investigation 3 | . 2 . 1 . . . . Extermination . | . . . . . . . . Reinforcement 7 | . . . 2 . . . 5 Assault . | . . . . . . . . Garrison 3 | . . . . . . . 3 Intercept . | . . . . . . . . Searches Triggered . | . . . . . . . . Construction Impeded 1 | . . . . . . . 1 Haulers Reinforced . | . . . . . . . . Active Scanning Responses . | . . . . . . . . Cargo Convoy Interrupts . | . . . . . . . . Stealth | -11 -10 -10 -9 -9 -9 -8 -8 --------- Run | Yrd Mat Min Mat Min Exi Min Mat Distress Signals 9 | . 2 . 1 . . . 6 Communications Jammed . | . . . . . . . . Distress Signals . | . . . . . . . . Times Spotted 63 | . 8 9 7 10 . 9 20 Peak Tracking Total 7 | . 5 3 4 3 . 3 7 Tactical Retreats 5 | . . 1 . 1 . 1 2 Traps | -11 -10 -10 -9 -9 -9 -8 -8 ------- Run | Yrd Mat Min Mat Min Exi Min Mat Traps Triggered . | . . . . . . . . Indirectly . | . . . . . . . . Trap Hack Attempts . | . . . . . . . . Triggered . | . . . . . . . . Disarmed . | . . . . . . . . Reprogrammed . | . . . . . . . . Reused . | . . . . . . . . Traps Extracted . | . . . . . . . . Installed . | . . . . . . . . Triggered . | . . . . . . . . Machines | -11 -10 -10 -9 -9 -9 -8 -8 ---------- Run | Yrd Mat Min Mat Min Exi Min Mat Machines Disabled 2 | . . . . . . . 2 Max in Single Turn 1 | . . . . . . . 1 Machines Repaired . | . . . . . . . . Machines Dismantled . | . . . . . . . . Machines Sabotaged . | . . . . . . . . Overloaded Fab Kills . | . . . . . . . . Hacking | -11 -10 -10 -9 -9 -9 -8 -8 --------- Run | Yrd Mat Min Mat Min Exi Min Mat Machines Accessed 7 | . 2 1 1 . 1 . 2 Terminals 2 | . . 1 . . . . 1 Fabricators . | . . . . . . . . Repair Stations . | . . . . . . . . Recycling Units 3 | . 2 . 1 . . . . Scanalyzers 1 | . . . . . . . 1 Garrison Access . | . . . . . . . . Total Hacks 16 | . 3 2 1 . 1 . 9 Successful 7 | . 2 . 1 . 1 . 3 Failed 9 | . 1 2 . . . . 6 Catastrophic . | . . . . . . . . Database Lockouts . | . . . . . . . . Manual 7 | . 3 . 1 . 1 . 2 Terminals 4 | . . 2 . . . . 2 Fabricators . | . . . . . . . . Repair Stations . | . . . . . . . . Recycling Units 4 | . 3 . 1 . . . . Scanalyzers 7 | . . . . . . . 7 Garrison Access . | . . . . . . . . Terminal Hacks 1 | . . . . . 1 . . Proto ID Catalog 1 | . . . . . 1 . . Fabricator Hacks . | . . . . . . . . Repair Station Hacks . | . . . . . . . . Recycling Unit Hacks . | . . . . . . . . Scanalyzer 2 | . . . . . . . 2 Retrieve Study 2 | . . . . . . . 2 Garrison Access Hacks . | . . . . . . . . Unauthorized Hacks 4 | . 2 . 1 . . . 1 Terminals 1 | . . . . . . . 1 Botnet 1 | . . . . . . . 1 Fabricators . | . . . . . . . . Repair Stations . | . . . . . . . . Recycling Units 3 | . 2 . 1 . . . . Tunnel 3 | . 2 . 1 . . . . Scanalyzers . | . . . . . . . . Garrison Access . | . . . . . . . . Data Cores Recovered . | . . . . . . . . Used . | . . . . . . . . Hacking Detections 3 | . . 1 . . . . 2 Full Trace Events 1 | . . . . . . . 1 Feedback Events . | . . . . . . . . Feedback Blocked . | . . . . . . . . Robot Schematics Acquired . | . . . . . . . . Robots Built . | . . . . . . . . Authchips . | . . . . . . . . Time . | . . . . . . . . Total Robot Build Rating . | . . . . . . . . Part Schematics Acquired . | . . . . . . . . Parts Built . | . . . . . . . . Authchips . | . . . . . . . . Time . | . . . . . . . . Total Part Build Rating . | . . . . . . . . Part Studies Acquired 2 | . . . . . . . 2 Parts Repaired . | . . . . . . . . Time . | . . . . . . . . Parts Recycled . | . . . . . . . . Recycled Matter . | . . . . . . . . Retrieved Matter . | . . . . . . . . Retrieved Components . | . . . . . . . . Parts Scanalyzed . | . . . . . . . . Part Schematics Acquired . | . . . . . . . . Parts Damaged . | . . . . . . . . Bothacking | -11 -10 -10 -9 -9 -9 -8 -8 ------------ Run | Yrd Mat Min Mat Min Exi Min Mat Used RIF Installer . | . . . . . . . . Robots Hacked . | . . . . . . . . Non-combat . | . . . . . . . . Combat . | . . . . . . . . Robot Hacks Applied . | . . . . . . . . Relay Couplers Released . | . . . . . . . . Fabnet Peak Effective % . | . . . . . . . . Robots Rewired . | . . . . . . . . Allies Hacked . | . . . . . . . . Hacks Repelled . | . . . . . . . . Allies | -11 -10 -10 -9 -9 -9 -8 -8 -------- Run | Yrd Mat Min Mat Min Exi Min Mat Total Allies 2 | . . . . 2 . . . Largest Group 2 | . . . . 2 . . . Highest-Rated Group 41 | . . . . 41 . . . Highest-Rated Ally 31 | . . . . 31 . . . Total Orders . | . . . . . . . . Ally Attacks 9 | . . . . 9 . . . Total Damage 82 | . . . . 82 . . . Kills 1 | . . . . 1 . . . Allies Corrupted . | . . . . . . . . Allies Melted . | . . . . . . . . Intel | -11 -10 -10 -9 -9 -9 -8 -8 ------- Run | Yrd Mat Min Mat Min Exi Min Mat Active Infowar (turns) . | . . . . . . . . Robot Analysis Total . | . . . . . . . . Derelict Logs Recovered 3 | . . 2 . 1 . . . Drone Launches . | . . . . . . . . Drone Recoveries . | . . . . . . . . Exploration | -11 -10 -10 -9 -9 -9 -8 -8 ------------- Run | Yrd Mat Min Mat Min Exi Min Mat Turns Passed 3156 | 46 364 445 288 793 217 494 509 Spaces Moved 1900 | 42 200 227 126 543 226 381 155 Core 1 | 1 . . . . . . . Treads 835 | . 200 227 126 282 . . . Legs 147 | . . . . . . . 147 Wheels 917 | 41 . . . 261 226 381 8 Hover . | . . . . . . . . Flight . | . . . . . . . . Fastest Speed 50 | 50 160 160 160 95 95 95 110 Average Speed 127 | 79 160 160 160 130 95 106 112 Slowest Speed 240 | 80 160 160 160 240 95 125 180 Overloaded Moves . | . . . . . . . . Propulsion Burnouts . | . . . . . . . . Robots Hopped . | . . . . . . . . Potential Cave-ins . | . . . . . . . . Cave-ins Triggered . | . . . . . . . . Exploration Rate (%) 43 | 4 33 70 12 93 61 60 15 Regions Visited 7 Branch Regions 4 Pre-discovered Areas 6 | . 2 1 1 2 . . . Known Exits Taken . | . . . . . . . . Unknown Exits Taken 7 | 1 1 1 1 1 1 1 . Scrap Searched 4 | . . . . 2 . 2 . Spaces Dug 2 | . . . . . . . 2 Terrain Destroyed 49 | . . . . . . 1 48 Melee . | . . . . . . . . Projectile 13 | . . . . . . 1 12 AOE 36 | . . . . . . . 36 Terrain Rammed . | . . . . . . . . Walls Destroyed . | . . . . . . . . Machines Disabled . | . . . . . . . . Actions | -11 -10 -10 -9 -9 -9 -8 -8 --------- Run | Yrd Mat Min Mat Min Exi Min Mat Total 2341 | 51 226 259 172 600 229 431 373 Wait 192 | . 10 5 11 14 . 20 132 Move 1893 | 41 199 226 125 542 225 380 155 Hop . | . . . . . . . . Pick Up 38 | 4 3 3 7 13 1 2 5 Fast Attach 14 | 6 2 . 3 . . 2 1 Attach 18 | . . . 1 3 . 3 11 Detach . | . . . . . . . . Swap 11 | . 3 . . 1 1 3 3 Drop 21 | . 1 . 4 10 2 3 1 Fire 154 | . 8 25 21 17 . 18 65 Melee . | . . . . . . . . Ram . | . . . . . . . . Kick . | . . . . . . . . Crush . | . . . . . . . . Escape Stasis . | . . . . . . . . Rewire . | . . . . . . . . Trap . | . . . . . . . . Miscellaneous . | . . . . . . . . Route ------- -11/Scrapyard -10/Materials (discovered 2 exits: *Mat / *Min) -10/Mines (discovered 2 exits: *Mat x2) -9/Materials -9/Mines (discovered 3 exits: *Mat x2 / *Exi) -9/Exiles -8/Mines -8/Materials History --------- Turn | Location | Event 12 | -11/Scrapyard | Discovered new exit (range 15) 47 | -11/Scrapyard | Entered Materials 285 | -10/Materials | Discovered new exit (range 6) 314 | -10/Materials | Build established: Mutant 319 | -10/Materials | Discovered new exit (range 16) 411 | -10/Materials | Entered Mines 785 | -10/Mines | Discovered new exit (range 4) 805 | -10/Mines | Learned location of Zion (-6) 842 | -10/Mines | Discovered new exit (range 8) 856 | -10/Mines | Entered Materials 856 | -9/Materials | Evolved 2 slots: Utility x2 987 | -9/Materials | Discovered new exit (range 16) 1144 | -9/Materials | Entered Mines 1195 | -9/Mines | Found a hidden stash of uninstalled traps 1200 | -9/Mines | Discovered new exit (range 6) 1333 | -9/Mines | Discovered new exit (range 15) 1354 | -9/Mines | Assembled infested the area 1359 | -9/Mines | Assisted by a Guerilla fighting off Assembled 1748 | -9/Mines | Deemed a non-threat by the Exiles lab entrance 1748 | -9/Mines | Discovered new exit (range 5) 1788 | -9/Mines | A weapon hastily lodged in a ceiling crevice suddenly fell to the ground 1937 | -9/Mines | Entered Exiles 1960 | -9/Exiles | Met 8R-AWN 1977 | -9/Exiles | Met EX-HEX 2002 | -9/Exiles | Met EX-BIN 2014 | -9/Exiles | Aligned with FarCom system 2014 | -9/Exiles | Given EX-Vault access code 2036 | -9/Exiles | Opened EX-Vault 2043 | -9/Exiles | Found Cloak of Protection 2065 | -9/Exiles | Warned to stay clear of 0b10 Research branches 2093 | -9/Exiles | Met EX-DEC 2143 | -9/Exiles | Discovered new exit (range 14) 2154 | -9/Exiles | Left Exiles lab with Cloak of Protection 2154 | -9/Exiles | Entered Mines 2549 | -8/Mines | Core integrity fell below 50% 2580 | -8/Mines | Lost 4 parts (1n1u2w) 2585 | -8/Mines | Discovered new exit (range 15) 2648 | -8/Mines | Entered Materials 2648 | -8/Materials | Evolved 2 slots: Propulsion x2 2871 | -8/Materials | Garrison activated, responded to threat 2984 | -8/Materials | Build established: Scavenger-Mutant 3068 | -8/Materials | Core integrity fell below 50% 3109 | -8/Materials | Core integrity fell below 20% 3157 | -8/Materials | Destroyed by H-61 Shepherd with Heavy Assault Cannon Last Messages --------------- 03132_ Cooling System destroyed. 03134_ U-05 Engineer lays Concrete. 03134_ G-47 Trooper destroyed. 03135_ U-05 Engineer builds a Wall. 03136_ R-06 Scavenger collects Med. Storage Unit. 03136_ U-05 Engineer destroyed. 03136_ R-06 Scavenger destroyed. 03137_ Titanium Leg+ destroyed. 03137_ Grenade Launcher destroyed. 03138_ Aluminum Leg destroyed. 03141_ The unstable cave ceiling collapses. 03141_ Lgt. Ion Engine crushed. 03142_ Destroyed Particle Gun. 03147_ Knocked back. 03150_ The unstable cave ceiling collapses. 03152_ K-01 Serf collects debris. 03155_ Critical hit (Burn: +37). 03156_ K-01 Serf collects debris. 03157_ Penetrated by Slug. Map ----- +----------------------------------------------------+ | ?????????????????????????# ##### """ # | | ?????????????????????????#""" # # """ # | | ?????????????????????????#""" # # # | | ?????????????????????????#""" # # "" # | | ?????????????????????????#""" # # """# | | ?????????????????????????#""" # # S"# | | ?????????????????????????# =+% + """# | | ?????????????????????????#""" # # """# | | ?????????????????????????#""" # # # | | ?????????????????????????#""" # ######### | | ?????????????????????????#""" = # # ] # | | ????????????????????????Y#""" # # # | | ?????????????????????????# # # """ # | | ?????????????????????????######## # """ # | | ???????????g????????????????????# # """ # | | ????????????????????????????????# # # | | ????????????????????????????????# # """ # | | ??????? ??????????????????????# # """ # | | ???????? ?????????????????????# + """ # | | ????????? ???????????????????# # # | | ??????????? ?#??##???????????# # ! # | | ????????????##; # ## ###???????## ######### | | ????????? # ######## #??????? | | ????????"" ; * = #??????? | | ????????"% %|% #??????? | | ????????"" =@% #??????? | | ????????"" /%gH= ;####### #??????? | | ????????"" *!!%k #?#####+#####????? | | ????????"" ##!!!## "## #????? | | ?????????"??##[%=## " ! ### #????? | | ????????????##%[=?#""" "%# """ #????? | | ????????????##[! ?# "## """ #????? | | ????????????##= ?#""" "## """ #????? | | ????????????## ##" " ### "T" #????? | | ???????????##== # % ### """ #????? | | ???? =%= # % % ### #????? | | ???? !=! ######################????? | | ???? ##????????????????????????? | | ?????### ## ??????????????????????????? | | ???????#????#####???????????????????????????? | | ????????????????????????????????????????????? | | ????????????????????????????????????????????? | | ????????????????????????????????????????????? | | ????????????????????????????????????????????? | | ????????????????????????????????????????????? | | ????????????????????????????????????????????? | | ????????????????????????????????????????????? | | ????????????????????????????????????????????? | | ????????????????????????????????????????????? | | ????????????????????????????????????????????? | +----------------------------------------------------+ Best States ------------- Heat Dissipation 75 Energy Generation 14 Energy Capacity 280 Matter Stores 300 Matter Capacity 300 Sight Range 16 Terrain Scan Density 10 Armor Coverage 150 Utility Shielding 33 Evasion (%) 55 Recoil Reduction 2 Particle Charging 15 Item Schematics ----------------- None Robot Schematics ------------------ None Fabricated ------------ Nothing Repaired ---------- Nothing Studied --------- Carbon-fiber Leg | -8/Materials | Hacked Titanium Leg | -8/Materials | Hacked Alien Tech Used ----------------- None Achievements -------------- None Challenges ------------ None Game ------ Seed SpectralPartitionTelecube Manual? 0 Play Time 00:22:16 Cumulative 226.5 hours Start 2026.08.11 @ 21:58:02 End 2026.08.11 @ 22:18:20 Sessions 1 Manual Loads 0 Difficulty Rogue Special Mode None Game No. 229 Rogue 175 Adventurer 54 Explorer 0 Win Type - Total 9 Types 5/0/1/1/0/0/0/1/0/1 Lore% 74 Gallery% 62 Achievement% 58 Wizard Run 0 Options --------- Layout 1 ASCII 0 Keyboard 0 Movement Mouse Keybinds 1 Fullscreen 2 Font 32/Tamsyn Map View 50x35 Zoom Use 0% Tactical HUD 1 Map Filters NONE Filters NONE Steam 1 RUN: 201eff75-a4e5-47da-8430-784ae0ad8ba8